Workbook

Sheet Лист1
A1: Форма перечня спортивной инфраструктуры всех форм собственности, независимо от их организационно-правовой формы, действующие и находящиеся на реконструкции или капитальном ремонте, отдельно стоящие или входящие в состав комплексных сооружений
A2: (информация о спортивной инфраструктуре, их площади, ЕПС, ФЗ и МС должна соответствовать сведениям, указанным в разделе 3 формы № 1 –ФК)
A4: № п/п | B4: Наименование спортивного сооружения с указанием принадлежности | C4: Адрес спортивного сооружения | D4: Длина, м | E4: Ширина, м | F4: Площадь спортивного сооружения, м2 | G4: Единовременная пропускная способность (ЕПС) | H4: Загруженность (ФЗ), чел. | I4: Мощность (МС), чел | J4: Собственность (муниципальная, региональная, федеральная, иная
A5: ПЛОСКОСТНЫЕ СООРУЖЕНИЯ
A6: 1 | B6: Стадион межшкольный МАОУ «Суксунская средняя общеобразовательная школа №1» | C6: п. Суксун, ул. Школьная, 1 | D6: 90 | E6: 45 | F6: 4050 | G6: 50 | H6: 90000 | I6: 154500 | J6: Муниципальная
A7: 2 | B7: Спортивное ядро стадиона центральный МУ ФКС «ФОК «Лидер» (футбольное поле, беговая дорожка, яма для прыжков в длину) | C7: п. Суксун, ул. Маношина, 30 | D7: 105 | E7: 68 | F7: 7140 | G7: 78 | H7: 140400 | I7: 228400 | J7: Муниципальная
A8: 3 | B8: Волейбольная площадка администрации Ключевского с/п | C8: д. Сыра, ул. Колхозная | D8: 20 | E8: 10 | F8: 200 | G8: 16 | H8: 4004 | I8: 12000 | J8: Муниципальная
A9: 4 | B9: Игровая спортивная площадка (волейбольная, футбольная, стритбольная площадки) администрации Ключевского с/п | C9: д. Тис, ул. Северная | D9: 40 | E9: 22 | F9: 880 | G9: 35 | H9: 4004 | I9: 12000 | J9: Муниципальная
A10: 5 | B10: Игровая спортивная площадка (волейбольная, стритбольная площадки) администрации Ключевского с/п | C10: д. Агафонково, ул. Молодежная | D10: 20 | E10: 15 | F10: 300 | G10: 20 | H10: 4004 | I10: 12000 | J10: Муниципальная
A11: 6 | B11: Волейбольная площадка администрации Поедугинского с/п | C11: д. Поедуги, ул. Молодежная | D11: 20 | E11: 12 | F11: 240 | G11: 16 | H11: 4004 | I11: 17600 | J11: Муниципальная
A12: 7 | B12: Волейбольная площадка администрации Поедугинского с/п | C12: д. Пепелыши, ул. Учительская | D12: 20 | E12: 12 | F12: 240 | G12: 16 | H12: 4004 | I12: 17600 | J12: Муниципальная
A13: 8 | B13: Волейбольная площадка администрации Поедугинского с/п | C13: д. Тарасово, ул. Центральная | D13: 20 | E13: 12 | F13: 240 | G13: 16 | H13: 4004 | I13: 17600 | J13: Муниципальная
A14: 9 | B14: Волейбольная площадка администрации Поедугинского с/п | C14: д. Тохтарево, ул. Центральная | D14: 20 | E14: 12 | F14: 240 | G14: 16 | H14: 4004 | I14: 17600 | J14: Муниципальная
A15: 10 | B15: Игровая площадка (волейбольная, футбольная площадки) администрации Ключевского с/п | C15: д. Осинцево | D15: 30 | E15: 13 | F15: 390 | G15: 35 | H15: 4004 | I15: 12000 | J15: Муниципальная
A16: 11 | B16: Игровой комплекс( волейбольная, футбольная площадки) администрация Ключевского с/п | C16: д. Брехово, ул. Мира | D16: 25 | E16: 20 | F16: 500 | G16: 35 | H16: 4004 | I16: 12000 | J16: Муниципальная
A17: 12 | B17: Игровой комплекс (баскетбольная, волейбольная стритбольная площадки) МАОУ «Ключевская средняя общеобразовательная школа» | C17: с. Ключи, ул. 40 лет Победы | D17: 40 | E17: 25 | F17: 1000 | G17: 45 | H17: 4004 | I17: 95850 | J17: Муниципальная
A18: 13 | B18: Спортивная площадка администрации Ключевского с/п | C18: с. Ключи, ул. 40 лет Победы | D18: 25 | E18: 20 | F18: 500 | G18: 35 | H18: 4004 | I18: 12000 | J18: Муниципальная
A19: 14 | B19: Спортивная площадка администрации Ключевского с/п | C19: д. Шахарово, ул. Центральная | D19: 30 | E19: 13 | F19: 390 | G19: 35 | H19: 4004 | I19: 12000 | J19: Муниципальная
A20: 15 | B20: Игровая спортивная площадка (волейбольная, стритбольная площадки) МОУ «Киселевская ОШИ » | C20: д. Киселево, ул. Школьная, 14 | D20: 16 | E20: 11 | F20: 176 | G20: 20 | H20: 4004 | I20: 16500 | J20: Муниципальная
A21: 16 | B21: Игровая спортивная площадка (волейбольная, футбольная, стритбольная площадки) администрации Киселевского с/п | C21: с. Сабарка, ул. Победы | D21: 60 | E21: 25 | F21: 1500 | G21: 15 | H21: 4004 | I21: 12200 | J21: Муниципальная
A22: 17 | B22: Игровая спортивная площадка (волейбольная, стритбольная площадки) администрации Киселевского с/п | C22: д. Моргуново, ул. Трактовая | D22: 16 | E22: 11 | F22: 176 | G22: 20 | H22: 4004 | I22: 12200 | J22: Муниципальная
A23: 18 | B23: Игровая площадка (волейбольная, футбольная, стритбольная площадки) администрации Суксунского г/п | C23: п. Суксун, ул. Заозерная | D23: 25 | E23: 15 | F23: 375 | G23: 20 | H23: 4022 | I23: 500 | J23: Муниципальная
A24: 19 | B24: Спортивно-игровой МАОУ «Суксунская средняя общеобразовательная школа №2» | C24: п. Суксун, ул. Большевистская 16, | D24: 50 | E24: 24 | F24: 1200 | G24: 35 | H24: 4004 | I24: 24500 | J24: Муниципальная
A25: 20 | B25: Игровой комплекс (волейбольная, стритбольная площадки) администрации Суксунского г/п | C25: п. Суксун, ул. Вишневая | D25: 25 | E25: 10 | F25: 250 | G25: 25 | H25: 4022 | I25: 500 | J25: Муниципальная
A26: 21 | B26: Игровой комплекс (волейбольная, стритбольная площадки) администрации Суксунского г/п | C26: п. Суксун, ул. Космонавтов | D26: 25 | E26: 15 | F26: 375 | G26: 25 | H26: 4022 | I26: 500 | J26: Муниципальная
A27: 22 | B27: Волейбольная площадка администрации Суксунского г/п | C27: п. Суксун, ул. Колхозная | D27: 25 | E27: 10 | F27: 250 | G27: 16 | H27: 4022 | I27: 500 | J27: Муниципальная
A28: 23 | B28: Волейбольная площадка стадиона центральный МУ ФКС «ФОК «Лидер» | C28: п. Суксун, ул. Маношина, 30 | D28: 21 | E28: 13 | F28: 273 | G28: 16 | H28: 4004 | I28: 12000 | J28: Муниципальная
B29: Итого: | F29: =SUM(F6:F28) -> 20885 | G29: =SUM(G6:G28) -> 640 | H29: =SUM(H6:H28) -> 314556 | I29: =SUM(I6:I28) -> 712550
A30: ФУТБОЛЬНЫЕ ПОЛЯ
B31: Футбольное поле стадиона межшкольный МАОУ «Суксунская средняя общеобразовательная школа №1» | C31: п. Суксун, ул. Школьная, 1 | D31: 70 | E31: 30 | F31: 2100 | G31: 28 | H31: 50400 | I31: 81990 | J31: Муниципальная
B32: Футбольное поле стадиона центральный МУ ФКС «ФОК «Лидер» (футбольное поле, беговая дорожка, яма для прыжков в длину) | C32: п. Суксун, ул. Маношина, 30 | D32: 105 | E32: 68 | F32: 7140 | G32: 28 | H32: 50400 | I32: 81990 | J32: Муниципальная
F33: =SUM(F31:F32) -> 9240 | G33: =SUM(G31:G32) -> 56 | H33: =SUM(H31:H32) -> 100800 | I33: =SUM(I31:I32) -> 163980
A34: СПОРТИВНЫЕ ЗАЛЫ
A35: 24 | B35: Спортивный зал МОУ «Бреховская основная общеобразовательная школа» | C35: д. Брехово, ул. Школьная, 7 | D35: 18 | E35: 9 | F35: 162 | G35: 30 | H35: 24300 | I35: 85170 | J35: Муниципальная
A36: 25 | B36: Спортивный зал МОУ «Васькинская основная общеобразовательная школа – детский сад» | C36: д. Васькино, ул. Пушкина 53 | D36: 18 | E36: 9 | F36: 162 | G36: 30 | H36: 19623 | I36: 54500 | J36: Муниципальная
A37: 26 | B37: Спортивный зал МАОУ «Ключевская средняя общеобразовательная школа» | C37: с. Ключи, ул. 40 лет Победы, 20 | D37: 18 | E37: 9 | F37: 162 | G37: 30 | H37: 25470 | I37: 82840 | J37: Муниципальная
A38: 27 | B38: Спортивный зал МОУ «Пепелышевская основная общеобразовательная школа» | C38: д. Пепелыши, ул. Колхозная 14 | D38: 18 | E38: 9 | F38: 162 | G38: 30 | H38: 22650 | I38: 51500 | J38: Муниципальная
A39: 28 | B39: Спортивный зал МОУ «Поедугинская основная общеобразовательная школа» | C39: д. Поедуги, ул. Сосновая, 23 | D39: 18 | E39: 9 | F39: 162 | G39: 30 | H39: 23570 | I39: 51870 | J39: Муниципальная
A40: 29 | B40: Спортивный зал МАОУ «Суксунская средняя общеобразовательная школа №2» | C40: п. Суксун, ул. Большевистская 16 | D40: 22 | E40: 12 | F40: 264 | G40: 35 | H40: 34340 | I40: 98500 | J40: Муниципальная
A41: 30 | B41: Спортивный зал МАОУ «Суксунская средняя общеобразовательная школа №1» | C41: п. Суксун, ул. Школьная 1 | D41: 18 | E41: 9 | F41: 162 | G41: 30 | H41: 34670 | I41: 99450 | J41: Муниципальная
A42: 31 | B42: Спортивный зал МАОУ «Тисовская средняя общеобразовательная школа» | C42: д. Тис, ул. Северная 32 | D42: 18 | E42: 9 | F42: 162 | G42: 30 | H42: 25480 | I42: 73200 | J42: Муниципальная
A43: 32 | B43: Спортивный зал МОУ «Сызганская основная общеобразовательная школа» | C43: д. Сызганка, ул. Молодежная 2 | D43: 16 | E43: 9 | F43: 144 | G43: 25 | H43: 24421 | I43: 43750 | J43: Муниципальная
A44: 33 | B44: Спортивный зал МОУ «Киселевская ОШИ » | C44: д. Киселево, ул. Школьная 14 | D44: 18 | E44: 9 | F44: 162 | G44: 30 | H44: 26782 | I44: 82800 | J44: Муниципальная
A45: 34 | B45: Спортивный зал МУ ФКС «ФОК «Лидер» | C45: п. Суксун, ул. Маношина 30 | D45: 42 | E45: 24 | F45: 1008 | G45: 50 | H45: 133125 | I45: 177500 | J45: Муниципальная
B46: Итого: | F46: =SUM(F35:F45) -> 2712 | G46: =SUM(G35:G45) -> 350 | H46: =SUM(H35:H45) -> 394431 | I46: =SUM(I35:I45) -> 901080
A47: ПЛАВАТЕЛЬНЫЕ БАССЕЙНЫ
A48: 35 | B48: Бассейн ЗАО «Курорт «Ключи» (25*3) | C48: с. Ключи, ул.Курортная, 23 | D48: 25 | E48: 10 | F48: 250 | G48: 32 | H48: 91980 | I48: 175400 | J48: Частная
B49: Итого: | F49: =SUM(F48) -> 250 | G49: =SUM(G48) -> 32 | H49: =SUM(H48) -> 91980 | I49: =SUM(I48) -> 175400
A50: ТИРЫ
A51: 36 | B51: Тир МАОУ «Суксунская средняя общеобразовательная школа №2» | C51: п. Суксун, ул. Большевистская 16 | D51: 50 | E51: 1.8 | F51: 90 | G51: 1 | H51: 2735 | I51: 24350 | J51: Муниципальная
B52: Итого: | F52: =SUM(F51) -> 90 | G52: =SUM(G51) -> 1 | H52: =SUM(H51) -> 2735 | I52: =SUM(I51) -> 24350
A53: ДРУГИЕ
A54: 37 | B54: Тренажерный зал МУ ФКС «ФОК «Лидер» | C54: п. Суксун, ул. Маношина, 30 | D54: 4 | E54: 3 | F54: 12 | G54: 5 | H54: 13687 | I54: 19436 | J54: Муниципальная
A55: 38 | B55: Тренажерный зал МУ «Центр развития культуры» | C55: п. Суксун, ул. Кирова, 48 | D55: 5 | E55: 4 | F55: 20 | G55: 7 | H55: 19162 | I55: 39395 | J55: Муниципальная
A56: 39 | B56: Тренажерный зал ИП Низовкин | C56: п. Суксун, ул. Карла Маркса, 7 | D56: 8 | E56: 5 | F56: 40 | G56: 9 | H56: 24637 | I56: 64784 | J56: Частная
A57: 40 | B57: Тренажерный зал МУ «Центр развития культуры» | C57: п. Суксун, ул. Вишневая, 8 | D57: 5 | E57: 5 | F57: 25 | G57: 5 | H57: 13687 | I57: 39395 | J57: Муниципальная
A58: 41 | B58: Тренажерный зал ЗАО «Курорт «Ключи» | C58: с. Ключи, ул. Курортная, 23 | D58: 10 | E58: 5 | F58: 50 | G58: 14 | H58: 35770 | I58: 80980 | J58: Частная
A59: 42 | B59: Спортивный зал МАОУ «Суксунская средняя общеобразовательная школа №2» | C59: п. Суксун, ул. Большевистская 16 | D59: 9 | E59: 10 | F59: 90 | G59: 25 | H59: 23600 | I59: 44300 | J59: Муниципальная
A60: 43 | B60: Спортивный зал МАОУ «Моргуновская основная общеобразовательная школа» | C60: д. Моргуново, ул. Трактовая 14 | D60: 14 | E60: 9 | F60: 126 | G60: 25 | H60: 16502 | I60: 49270 | J60: Муниципальная
B61: Итого: | F61: =SUM(F54:F60) -> 363 | G61: =SUM(G54:G60) -> 90 | H61: =SUM(H54:H60) -> 147045 | I61: =SUM(I54:I60) -> 337560 | XFD61: =SUM(A61:XFC61) -> 485058
A62: ОБЪЕКТЫ ГОРОДСКОЙ И РЕКРЕАЦИОННОЙ ИНФРАСТРУКТУРЫ, ПРИСПОСОБЛЕННЫЕ ДЛЯ ЗАНЯТИЙ ФИЗИЧЕСКОЙ КУЛЬТУРОЙ И СПОРТОМ
A63: 5. | B63: каток (сезонный)
A64: 44 | B64: Открытый хоккейный корт для заливки катка МУ ФКС "ФОК "Лидер" | C64: п. Суксун, ул. Маношина, 30 | D64: 40 | E64: 20 | F64: 800 | G64: 53 | J64: Муниципальная
B65: Итого:
B66: ИТОГО: | H66: =H29+H46+H49+H52+H61+H65 -> 950747 | I66: =I29+I46+I49+I52+I61+I65 -> 2150940
B68: Заместитель главы Администрации Суксунского муниципального района | E68: Лопатин Сергей Михайлович
B69: (должность) | E69: (Ф.И.О.) | H69: (подпись)
A73: ФИО исполнителя, телефон (с кодом)
A75: Змазова Вероника Георгиевна (34275)31371

Sheet Лист2

Sheet Лист3
